bitfinex/quotes_SOLUSD_20240914
["timestamp","ask_amount","ask_price","bid_price","bid_amount"]
[1726292404682,21.7068,138.93,138.86,10.0]
[1726292406193,0.25098,138.92,138.86,10.0]
[1726292416879,0.25098,138.92,138.86,10.2604447]
[1726292423685,24.027864,138.92,138.86,0.2604447]
[1726292423892,0.12549,138.91,138.86,0.2604447]
[1726292427888,24.027864,138.92,138.86,0.2604447]
[1726292433294,0.12549,138.91,138.86,0.2604447]
[1726292434014,0.12549,138.9,138.86,0.2604447]
[1726292434400,0.12549,138.91,138.86,0.2604447]
[1726292466515,21.62,138.89,138.86,0.2604447]
[1726292466834,0.37647,138.88,138.86,0.2604447]
[1726292472432,0.37647,138.88,138.83,15.9300447]
[1726292475554,0.12549,138.88,138.84,10.0]
[1726292476054,0.25098,138.91,138.84,10.0]
[1726292476243,0.12549,138.89,138.84,10.0]
[1726292476441,0.12549,138.9,138.84,10.0]
[1726292476851,0.25098,138.91,138.84,10.0]
[1726292477934,0.12549,138.9,138.84,10.0]
[1726292485178,21.62,138.92,138.84,10.0]
[1726292485179,19.92519953,138.92,138.84,10.0]
[1726292487260,0.25098,138.91,138.84,10.0]
[1726292487461,0.25098,138.9,138.84,10.0]
[1726292502405,0.25098,138.89,138.84,10.0]
[1726292512894,0.12549,138.9,138.84,10.0]
[1726292513212,0.37647,138.91,138.84,10.0]
[1726292517218,0.37647,138.91,138.85,6.6562]
[1726292520902,21.64,138.94,138.86,25.7715]
[1726292521101,55.98653907,138.99,138.89,22.4277]
[1726292521303,15.1463,138.99,138.89,22.4277]
[1726292522116,21.9004447,138.98,138.89,22.4277]
[1726292522511,45.793354,138.97,138.89,22.4277]
[1726292523220,45.793354,138.97,138.9,10.0]
[1726292524438,22.01647,138.97,138.9,10.0]
[1726292524617,0.37647,138.97,138.9,10.0]
[1726292531821,0.12549,138.97,138.93,22.7488]
[1726292532331,0.2604447,138.98,138.93,22.7488]
[1726292550435,0.2604447,138.98,138.94,10.0]
[1726292564772,0.2604447,138.98,138.96,10.0]
[1726292574679,0.2604447,138.98,138.94,10.0]
[1726292575888,0.2604447,138.98,138.96,10.0]
[1726292582792,0.2604447,138.98,138.94,10.0]
[1726292585209,0.2604447,138.98,138.96,10.0]
[1726292612221,0.2604447,138.98,138.97,15.518]
[1726292623630,0.2604447,138.98,138.96,10.0]
[1726292678153,0.2604447,138.98,138.97,3.60845135]
[1726292683472,0.2604447,138.98,138.96,10.0]
[1726292722706,0.2604447,138.98,138.92,10.0]
[1726292724487,0.25098,138.97,138.92,10.0]
[1726292724691,16.71698,138.97,138.92,10.0]
[1726292725287,16.71698,138.97,138.91,20.0]
[1726292727610,16.71698,138.97,138.9,10.0]
[1726292727611,16.71698,138.97,138.92,10.0]
[1726292728719,16.466,138.97,138.92,10.0]
[1726292732214,16.466,138.97,138.9,10.0]
[1726292732795,6.88817,138.96,138.9,10.0]
[1726292733198,23.776884,138.95,138.88,10.0]
[1726292733411,0.37647,138.94,138.88,10.0]
[1726292735599,0.37647,138.94,138.87,20.0]
[1726292736625,0.37647,138.94,138.88,10.0]
[1726292739011,0.12549,138.92,138.88,10.0]
[1726292739211,0.25098,138.92,138.86,10.0]
[1726292739416,0.37647,138.92,138.86,10.0]
[1726292755130,0.37647,138.92,138.84,15.3308]
[1726292755131,15.3675,138.93,138.88,10.0]
[1726292760537,15.3675,138.93,138.9,10.0]
[1726292762234,6.5117,138.96,138.9,10.0]
[1726292762642,6.5117,138.96,138.92,10.0]
[1726292763945,15.9036,138.97,138.92,10.0]
[1726292766022,15.9036,138.97,138.88,15.8577]
[1726292766023,0.37647,138.96,138.9,10.0]
[1726292770929,0.12549,138.96,138.9,10.0]
[1726292773852,0.25098,138.96,138.9,10.0]
[1726292778046,15.78007,138.97,138.92,10.0]
[1726292791649,15.78007,138.97,138.95,10.0]
[1726292792072,0.2604447,138.98,138.95,10.0]
[1726292793563,0.2604447,138.98,138.97,10.0]
[1726292799057,0.2604447,138.98,138.97,40.0]
[1726292803952,0.2604447,138.98,138.97,30.0]
[1726292804154,0.2604447,138.98,138.94,10.0]
[1726292807079,0.2604447,138.98,138.96,10.0]
[1726292819981,0.2604447,138.98,138.97,30.0]
[1726292821080,0.2604447,138.98,138.96,10.0]
[1726292824089,0.2604447,138.98,138.97,30.0]
[1726292829192,0.2604447,138.98,138.96,10.0]
[1726292833711,0.2604447,138.98,138.94,10.0]
[1726292834788,0.12549,138.97,138.94,10.0]
[1726292835774,0.25098,138.97,138.91,10.0]
[1726292836002,0.25098,138.96,138.91,10.0]
[1726292841908,0.25098,138.93,138.89,10.0]
[1726292842806,24.027864,138.93,138.85,10.0]
[1726292843103,0.12549,138.91,138.85,10.0]
[1726292843312,0.25098,138.91,138.85,10.0]
[1726292845504,0.25098,138.9,138.85,10.0]
[1726292849917,0.12549,138.9,138.85,10.0]
[1726292852022,0.25098,138.9,138.85,10.0]
[1726292853226,0.12549,138.89,138.83,10.2604447]
[1726292853406,0.12549,138.88,138.83,10.2604447]
[1726292855207,16.4856,138.9,138.86,10.0]
[1726292856930,6.445,138.92,138.86,10.0]
[1726292858036,0.12549,138.91,138.86,10.0]
[1726292859015,0.12549,138.91,138.87,30.0]
[1726292859405,6.445,138.92,138.87,30.0]
[1726292861099,6.445,138.92,138.86,10.0]
[1726292862245,24.027864,138.91,138.84,10.0]
[1726292863635,0.12549,138.9,138.84,10.0]
[1726292863820,0.25098,138.89,138.84,10.0]
[1726292869325,0.25098,138.89,138.83,0.2604447]
[1726292870243,0.25098,138.89,138.84,10.0]
[1726292874951,0.25098,138.89,138.83,0.2604447]
[1726292875138,15.57848,138.89,138.83,0.2604447]
[1726292878128,15.57848,138.89,138.84,10.0]
[1726292890852,22.6199,138.92,138.86,10.0]
[1726292891838,44.2499,138.92,138.86,10.0]
[1726292892045,22.6199,138.92,138.86,10.0]
[1726292900171,22.6199,138.92,138.88,10.0]
[1726292911582,22.6199,138.92,138.9,10.0]
[1726292911583,16.1749,138.92,138.9,10.0]
[1726292913061,0.12549,138.94,138.9,10.0]
[1726292930383,24.153354,138.94,138.9,10.0]
[1726292930580,24.153354,138.94,138.88,10.0]
[1726292932378,0.12549,138.93,138.88,10.0]
[1726292932690,0.12549,138.92,138.88,10.0]
[1726292933105,0.37647,138.93,138.88,10.0]
[1726292933396,0.25098,138.93,138.88,10.0]
[1726292938597,0.12549,138.93,138.88,10.0]
[1726292938802,23.902374,138.94,138.88,10.0]
[1726292939096,0.12549,138.94,138.9,10.0]
[1726292939302,0.25098,138.94,138.9,10.0]
[1726292942196,0.12549,138.94,138.9,10.0]
[1726292942395,20.0,138.97,138.92,10.0]
[1726292942596,12.61193293,138.98,138.92,10.0]
[1726292943082,20.2604447,138.98,138.92,10.0]
[1726292944412,0.12549,138.97,138.92,10.0]
[1726292948605,24.0373287,138.98,138.92,10.0]
[1726292948796,0.2604447,138.98,138.94,10.0]
[1726292953289,0.2604447,138.98,138.96,10.0]
[1726292954594,0.2604447,138.98,138.96,26.5661]
[1726292957408,0.2604447,138.98,138.96,56.5661]
[1726292962811,0.2604447,138.98,138.96,68.05903349]
[1726292965695,0.2604447,138.98,138.96,10.0]
[1726292966000,0.2604447,138.98,138.94,10.0]
[1726292967705,0.12549,138.97,138.92,10.0]
[1726292968713,0.25098,138.97,138.9,25.3716]
[1726292969297,0.25098,138.95,138.9,10.0]
[1726292970909,0.25098,138.93,138.88,10.0]
[1726292973215,24.027864,138.93,138.88,10.0]
[1726292979424,0.12549,138.92,138.88,10.0]
[1726292989521,24.027864,138.91,138.88,10.0]
[1726292992135,24.027864,138.91,138.86,10.0]
[1726292993031,0.12549,138.9,138.86,10.0]
[1726293001169,0.12549,138.9,138.83,0.2604447]
[1726293001170,0.12549,138.9,138.84,10.0]
[1726293001455,24.027864,138.88,138.83,0.2604447]
[1726293003639,0.12549,138.87,138.83,0.2604447]
[1726293010256,15.9115,138.92,138.87,10.0]
[1726293012338,0.25098,138.91,138.87,10.0]
[1726293013456,0.25098,138.92,138.87,10.0]
[1726293014937,0.12549,138.9,138.83,10.2604447]
[1726293015147,24.027864,138.9,138.83,10.2604447]
[1726293015448,0.12549,138.89,138.83,10.2604447]
[1726293016667,0.12549,138.89,138.83,0.2604447]
[1726293035871,0.25098,138.89,138.83,0.2604447]
[1726293036283,0.12549,138.88,138.83,0.2604447]
[1726293037895,0.12549,138.87,138.83,0.2604447]
[1726293038282,0.12549,138.86,138.83,0.2604447]
[1726293039084,0.25098,138.86,138.83,0.2604447]
[1726293043002,0.12549,138.86,138.83,0.2604447]
[1726293044699,0.12549,138.86,138.83,10.2604447]
[1726293046177,0.12549,138.87,138.83,10.2604447]
[1726293046380,0.25098,138.87,138.83,10.2604447]
[1726293047592,21.63,138.92,138.85,10.0]
[1726293047593,0.25098,138.89,138.85,10.0]
[1726293048104,24.027864,138.89,138.85,10.0]
[1726293048680,0.12549,138.89,138.85,10.0]
[1726293048888,20.0,138.92,138.87,10.0]
[1726293049406,20.0,138.92,138.85,10.0]
[1726293050904,0.12549,138.9,138.85,10.0]
[1726293051283,0.12549,138.9,138.87,10.0]
[1726293053885,20.0,138.95,138.87,10.0]
[1726293055199,20.0,138.93,138.87,10.0]
[1726293055695,0.12549,138.92,138.87,10.0]
[1726293060791,0.25098,138.93,138.89,10.0]
[1726293063030,0.25098,138.93,138.87,10.0]
[1726293063210,0.12549,138.92,138.87,10.0]
[1726293064521,0.12549,138.92,138.85,16.251]
[1726293064522,0.12549,138.92,138.85,26.251]
[1726293064721,0.25098,138.91,138.85,26.251]
[1726293064896,0.12549,138.9,138.85,26.251]
[1726293066013,0.25098,138.91,138.87,10.0]
[1726293066521,0.12549,138.91,138.87,10.0]
[1726293075411,0.25098,138.92,138.87,10.0]
[1726293075732,0.12549,138.92,138.87,10.0]
[1726293082945,0.37647,138.92,138.87,10.0]
[1726293105044,0.37647,138.92,138.87,9.0]
[1726293107880,0.12549,138.92,138.87,9.0]
[1726293109576,0.12549,138.92,138.89,9.0]
[1726293110358,44.027864,138.95,138.89,9.0]
[1726293110580,0.12549,138.94,138.89,9.0]
[1726293113975,0.12549,138.93,138.89,9.0]
[1726293114190,0.12549,138.94,138.89,9.0]
[1726293118189,0.12549,138.94,138.89,24.5043]
[1726293119799,44.027864,138.95,138.89,24.5043]
[1726293119997,20.0,138.97,138.91,9.0]
[1726293120470,20.2604447,138.98,138.91,9.0]
[1726293121070,0.25098,138.97,138.91,9.0]
[1726293121277,0.12549,138.96,138.91,9.0]
[1726293122306,23.902374,138.97,138.93,9.0]
[1726293122888,23.902374,138.97,138.93,24.1285]
[1726293123086,0.2604447,138.98,138.93,24.1285]
[1726293124497,0.12549,138.97,138.93,24.1285]
[1726293142516,0.25098,138.97,138.93,24.1285]
[1726293142713,24.153354,138.97,138.93,24.1285]
[1726293143224,45.793354,138.97,138.9,9.0]
[1726293144734,20.0,138.96,138.88,25.168]
[1726293144911,24.153354,138.95,138.88,25.168]
[1726293145122,45.793354,138.95,138.88,16.168]
[1726293145639,24.027864,138.93,138.88,16.168]
[1726293145819,0.12549,138.92,138.88,16.168]
[1726293151533,0.12549,138.92,138.84,25.0225]
[1726293151925,0.12549,138.92,138.86,9.0]
[1726293154119,0.12549,138.92,138.88,9.0]
[1726293160050,0.12549,138.92,138.85,9.0]
[1726293160542,24.027864,138.91,138.84,16.0225]
[1726293160739,0.12549,138.9,138.84,16.0225]
[1726293162527,0.12549,138.9,138.83,9.2604447]
[1726293166662,24.027864,138.89,138.83,9.2604447]
[1726293166872,0.12549,138.88,138.83,9.2604447]
[1726293169950,0.12549,138.88,138.83,0.2604447]
[1726293177062,24.027864,138.87,138.83,0.2604447]
[1726293177275,24.027864,138.87,138.81,9.0]
[1726293177276,0.12549,138.86,138.81,8.7604447]
[1726293182467,0.12549,138.86,138.81,8.2604447]
[1726293187906,62.034964,138.85,138.79,0.2604447]
[1726293188397,0.12549,138.84,138.79,0.2604447]
[1726293191991,88.477064,138.85,138.84,4.87451]
[1726293192191,68.477064,138.85,138.79,0.2604447]
[1726293194283,0.12549,138.84,138.79,0.2604447]
[1726293198597,20.12549,138.84,138.79,0.2604447]
[1726293198772,24.027864,138.81,138.75,8.5208894]
[1726293199093,0.12549,138.8,138.75,8.5208894]
[1726293199667,0.12549,138.8,138.75,0.2604447]
[1726293200505,15.068,138.79,138.75,0.2604447]
[1726293200796,24.153354,138.78,138.75,0.2604447]
[1726293202389,24.153354,138.78,138.71,8.5208894]
[1726293202390,45.793354,138.78,138.71,8.5208894]
[1726293215098,24.027864,138.76,138.71,8.5208894]
[1726293215411,0.12549,138.75,138.71,8.5208894]
[1726293216515,0.12549,138.75,138.71,0.2604447]
[1726293219703,24.027864,138.72,138.71,0.2604447]
[1726293219905,24.153354,138.72,138.68,2.57438129]
[1726293220604,0.12549,138.71,138.68,2.57438129]
[1726293221203,15.3212,138.74,138.7,8.2604447]
[1726293222328,24.027864,138.73,138.7,8.2604447]
[1726293222527,24.153354,138.73,138.7,8.2604447]
[1726293222818,24.027864,138.73,138.7,8.2604447]
[1726293223198,15.3212,138.74,138.7,8.2604447]
[1726293223598,6.2245,138.75,138.7,8.2604447]
[1726293224116,44.14061007,138.77,138.72,8.2604447]
[1726293224117,15.8996,138.77,138.72,8.2604447]
[1726293224705,24.153354,138.76,138.72,8.2604447]
[1726293225210,45.793354,138.76,138.7,8.2604447]
[1726293225408,45.793354,138.76,138.68,10.83482599]
[1726293231719,45.793354,138.76,138.7,8.2604447]
[1726293232317,45.793354,138.76,138.68,10.83482599]
[1726293238138,45.793354,138.76,138.7,8.2604447]
[1726293239623,22.1857,138.75,138.7,8.2604447]
[1726293239823,24.153354,138.74,138.68,10.83482599]
[1726293240438,45.793354,138.74,138.68,10.83482599]
[1726293242141,24.153354,138.74,138.68,10.83482599]
[1726293243324,45.793354,138.74,138.68,10.83482599]
[1726293250768,24.153354,138.74,138.68,10.83482599]
[1726293256075,24.153354,138.74,138.7,8.2604447]
[1726293257768,24.153354,138.74,138.68,10.83482599]
[1726293266564,0.25098,138.72,138.68,10.83482599]
[1726293266769,24.153354,138.74,138.68,10.83482599]
[1726293276781,0.25098,138.72,138.68,10.83482599]
[1726293277286,24.153354,138.74,138.68,10.83482599]
[1726293281879,24.153354,138.74,138.71,8.2604447]
[1726293286894,24.027864,138.74,138.71,8.2604447]
[1726293290280,0.12549,138.74,138.71,8.2604447]
[1726293290475,0.12549,138.76,138.71,8.2604447]
[1726293290701,23.902374,138.76,138.71,8.2604447]
[1726293290998,0.12549,138.75,138.71,8.2604447]
[1726293295498,0.12549,138.74,138.71,8.2604447]
[1726293296908,23.902374,138.74,138.71,8.2604447]
[1726293297200,0.12549,138.74,138.71,8.2604447]
[1726293300806,0.25098,138.75,138.71,8.2604447]
[1726293300981,16.5219,138.78,138.73,8.2604447]
[1726293301181,6.98727685,138.81,138.75,8.2604447]
[1726293301402,0.2604447,138.81,138.75,8.2604447]
[1726293302478,20.2604447,138.81,138.75,8.2604447]
[1726293302883,24.027864,138.8,138.75,8.2604447]
[1726293303901,0.25098,138.79,138.75,8.2604447]
[1726293304301,0.12549,138.78,138.75,8.2604447]
[1726293306411,0.2604447,138.81,138.78,8.2604447]
[1726293307714,0.12549,138.8,138.78,8.2604447]
[1726293308184,0.25098,138.8,138.76,8.2604447]
[1726293308586,0.25098,138.8,138.78,8.2604447]
[1726293309396,0.12549,138.8,138.78,8.2604447]
[1726293311309,0.2604447,138.81,138.78,8.2604447]
[1726293312794,0.12549,138.8,138.78,8.2604447]
[1726293313812,24.027864,138.78,138.73,8.2604447]
[1726293313995,0.37647,138.77,138.73,8.2604447]
[1726293316315,0.12549,138.8,138.75,8.2604447]
[1726293316498,0.12549,138.79,138.75,8.2604447]
[1726293316702,0.25098,138.79,138.75,8.2604447]
[1726293316903,0.12549,138.78,138.75,8.2604447]
[1726293321826,0.12549,138.78,138.73,8.2604447]
[1726293322020,0.12549,138.77,138.73,8.2604447]
[1726293324310,0.12549,138.76,138.73,8.2604447]
[1726293324511,0.12549,138.75,138.71,8.2604447]
[1726293325028,0.12549,138.74,138.71,8.2604447]
[1726293330527,23.902374,138.75,138.71,8.2604447]
[1726293330711,0.12549,138.75,138.73,8.2604447]
[1726293333411,41.64,138.79,138.73,8.2604447]
[1726293333611,24.027864,138.79,138.73,8.2604447]
[1726293333810,0.12549,138.78,138.73,8.2604447]
[1726293337530,21.76549,138.78,138.73,8.2604447]
[1726293337722,0.12549,138.78,138.73,8.2604447]
[1726293344726,21.64,138.77,138.73,8.2604447]
[1726293344934,24.153354,138.76,138.73,8.2604447]
[1726293345236,24.153354,138.76,138.7,23.9920447]
[1726293345940,0.37647,138.76,138.7,23.9920447]
[1726293346930,24.027864,138.74,138.7,8.2604447]
[1726293347140,0.12549,138.73,138.7,8.2604447]
[1726293347637,23.902374,138.72,138.7,8.2604447]
[1726293347851,0.12549,138.73,138.7,8.2604447]
[1726293348017,0.12549,138.73,138.68,10.83482599]
[1726293362459,45.667864,138.74,138.73,4.87451]
[1726293362647,45.667864,138.74,138.68,10.83482599]
[1726293364378,21.64,138.72,138.68,2.57438129]
[1726293364665,24.153354,138.71,138.68,2.57438129]
[1726293365559,0.37647,138.71,138.68,2.57438129]
[1726293367958,42.01647,138.71,138.68,2.57438129]
[1726293368156,0.25098,138.69,138.68,2.57438129]
[1726293368455,0.37647,138.69,138.68,2.57438129]
[1726293373059,0.37647,138.69,138.67,0.2604447]
[1726293373261,0.12549,138.68,138.67,0.2604447]
[1726293374359,0.12549,138.68,138.58,0.2604447]
[1726293374360,0.12549,138.68,138.62,8.5208894]
[1726293374541,0.25098,138.67,138.62,8.5208894]
[1726293374739,0.12549,138.66,138.62,8.5208894]
[1726293377979,0.12549,138.66,138.58,6.7162447]
[1726293377980,65.667864,138.63,138.58,8.5208894]
[1726293378167,65.667864,138.63,138.54,24.3172341]
[1726293378365,0.25098,138.59,138.54,7.2813341]
[1726293378570,0.25098,138.59,138.48,16.61602644]
[1726293378571,0.25098,138.59,138.56,7.2813341]
[1726293378769,0.12549,138.59,138.56,7.2813341]
[1726293379073,23.776884,138.6,138.58,7.2813341]
[1726293379487,23.276884,138.6,138.58,7.2813341]
[1726293380383,0.25098,138.59,138.57,7.2813341]
[1726293380787,23.276884,138.6,138.57,7.2813341]
[1726293381962,6.61720051,138.65,138.61,7.2813341]
[1726293381963,0.2604447,138.65,138.61,7.2813341]
[1726293382166,0.2604447,138.65,138.58,7.2813341]
[1726293382776,0.2604447,138.65,138.6,7.2813341]
[1726293383266,23.776884,138.64,138.6,7.2813341]
[1726293383871,23.776884,138.64,138.58,7.2813341]
[1726293384069,23.776884,138.64,138.6,7.2813341]
[1726293384270,0.25098,138.63,138.58,7.2813341]
[1726293387675,0.25098,138.63,138.6,7.2813341]
[1726293390481,0.25098,138.62,138.57,7.2813341]
[1726293390682,0.12549,138.61,138.57,7.2813341]
[1726293390882,0.12549,138.61,138.59,7.2813341]
[1726293391272,0.12549,138.61,138.56,7.2813341]
[1726293392212,0.12549,138.61,138.58,7.2813341]
[1726293392213,0.25098,138.61,138.58,7.2813341]
[1726293394177,0.25098,138.61,138.54,16.5359]
[1726293394178,0.25098,138.61,138.55,7.2813341]
[1726293394506,0.25098,138.59,138.55,7.2813341]
[1726293396696,0.12549,138.57,138.53,7.2813341]
[1726293397004,0.12549,138.57,138.5,0.2604447]
[1726293397005,20.12549,138.53,138.5,0.2604447]
[1726293397203,23.902374,138.52,138.5,0.2604447]
[1726293397401,44.153354,138.51,138.5,0.2604447]
[1726293397704,44.027864,138.51,138.5,0.2604447]
[1726293397997,44.153354,138.51,138.5,0.2604447]
[1726293398202,44.153354,138.51,138.46,3.38234994]
[1726293398203,24.027864,138.5,138.46,3.38234994]
[1726293398384,24.027864,138.5,138.47,3.38234994]
[1726293398582,0.0587207,138.55,138.49,3.38234994]
[1726293398798,43.902374,138.54,138.49,3.38234994]
[1726293399005,0.25098,138.53,138.49,3.38234994]
[1726293399212,0.12549,138.52,138.49,3.38234994]
[1726293402692,0.12549,138.52,138.45,3.38234994]
[1726293402878,0.25098,138.46,138.42,3.38234994]
[1726293404391,0.25098,138.46,138.44,3.38234994]
[1726293404586,0.25098,138.46,138.37,5.18866243]
[1726293406510,0.25098,138.46,138.37,20.0]
[1726293406893,0.25098,138.46,138.36,18.16662349]
[1726293407206,0.25098,138.46,138.37,0.12549]
[1726293407786,0.25098,138.46,138.36,18.04113349]
[1726293407787,0.25098,138.46,138.36,6.5482]
[1726293408209,0.25098,138.46,138.36,18.04113349]
[1726293408602,6.5116,138.51,138.36,18.04113349]
[1726293408603,20.0,138.5,138.36,24.65858687]
[1726293408912,0.25098,138.49,138.35,20.0]
[1726293409104,0.25098,138.49,138.37,20.0]
[1726293409806,0.12549,138.46,138.37,20.0]
[1726293410107,0.12549,138.45,138.36,24.027864]
[1726293410334,0.12549,138.45,138.34,6.17107627]
[1726293410501,0.12549,138.45,138.35,20.0]
[1726293410701,0.12549,138.44,138.35,20.0]
[1726293410913,0.12549,138.43,138.35,20.0]
[1726293411413,0.25098,138.43,138.35,20.0]
[1726293411613,24.027864,138.43,138.35,20.0]
[1726293411818,0.25098,138.43,138.35,20.0]
[1726293411992,0.25098,138.44,138.35,20.0]
[1726293412193,0.12549,138.43,138.35,20.0]
[1726293412393,0.25098,138.44,138.35,20.0]
[1726293413708,0.12549,138.44,138.35,20.0]
[1726293414016,0.25098,138.44,138.35,20.0]
[1726293417094,16.6652,138.46,138.36,0.12549]
[1726293417406,16.6652,138.46,138.37,20.0]
[1726293417802,16.6652,138.46,138.36,20.25098]
[1726293418416,23.902374,138.45,138.36,20.25098]
[1726293418913,23.902374,138.45,138.36,0.12549]
[1726293421922,23.776884,138.45,138.37,20.0]
[1726293423000,6.13,138.44,138.37,20.0]
[1726293424321,16.6652,138.46,138.37,31.49293349]
[1726293424520,16.6652,138.46,138.38,0.12549]
[1726293425525,16.6652,138.46,138.37,20.0]
[1726293429021,16.6652,138.46,138.39,20.0]
[1726293430399,16.6652,138.46,138.41,20.0]
[1726293430799,6.13,138.47,138.41,20.0]
[1726293431224,6.13,138.47,138.41,11.80340216]
[1726293431415,15.6743997,138.49,138.42,20.12549]
[1726293431601,15.6743997,138.49,138.43,11.67791216]
[1726293432705,24.027864,138.48,138.41,20.0]
[1726293433031,23.902374,138.48,138.39,20.0]
[1726293433202,23.776884,138.48,138.39,20.0]
[1726293434326,15.6743997,138.49,138.4,11.92889216]
[1726293434508,15.6743997,138.49,138.41,20.0]
[1726293440409,15.6743997,138.49,138.41,23.6245452]
[1726293441412,15.6743997,138.49,138.42,0.12549]
[1726293443009,15.6743997,138.49,138.41,20.0]
[1726293450523,24.027864,138.48,138.39,20.0]
[1726293450915,24.027864,138.48,138.36,22.17275338]
[1726293451227,23.902374,138.45,138.36,15.5553]
[1726293451804,6.4636,138.46,138.36,15.5553]
[1726293452011,6.4636,138.46,138.36,27.22659173]
[1726293452411,6.4636,138.46,138.37,20.0]
[1726293452819,6.4636,138.46,138.38,0.12549]
[1726293453116,23.902374,138.45,138.37,20.0]
[1726293460442,24.0622111,138.45,138.37,20.0]
[1726293463747,24.0622111,138.45,138.37,19.5]
[1726293464228,0.12549,138.44,138.37,19.5]
[1726293465625,0.12549,138.44,138.34,11.67129173]
[1726293465626,23.902374,138.43,138.34,11.67129173]
[1726293465823,23.902374,138.43,138.33,31.67129173]
[1726293466032,0.12549,138.42,138.33,31.67129173]
[1726293466443,0.12549,138.42,138.33,20.0]
[1726293466749,0.12549,138.42,138.33,31.67129173]
[1726293466952,0.12549,138.42,138.33,20.0]
[1726293467245,0.12549,138.39,138.32,0.169909]
[1726293467445,23.902374,138.39,138.32,0.169909]
[1726293468144,15.098,138.4,138.32,11.84120073]
[1726293468330,23.776884,138.39,138.32,0.169909]
[1726293468931,23.776884,138.39,138.32,20.169909]
[1726293470244,0.12549,138.38,138.32,0.169909]
[1726293471941,0.25098,138.38,138.32,0.169909]
[1726293472641,6.4339,138.37,138.32,0.169909]
[1726293473034,24.153354,138.36,138.32,0.169909]
[1726293474346,24.027864,138.36,138.32,0.169909]
[1726293474938,6.4339,138.37,138.32,0.169909]
[1726293479178,21.5319,138.4,138.32,0.169909]
[1726293480344,9.96059986,138.33,138.32,0.169909]
[1726293491448,9.96059986,138.33,138.32,0.295399]
[1726293491762,9.96059986,138.33,138.32,11.96669073]
[1726293491956,9.96059986,138.33,138.32,11.46669073]
[1726293494558,9.96059986,138.33,138.32,55.36906473]
[1726293494765,9.96059986,138.33,138.32,55.62004473]
[1726293496065,9.96059986,138.33,138.32,31.59218073]
[1726293496260,9.96059986,138.33,138.32,31.84316073]
[1726293496661,9.96059986,138.33,138.32,55.62004473]
[1726293496969,9.96059986,138.33,138.32,31.59218073]
[1726293497883,9.96059986,138.33,138.29,6.61745338]
[1726293498050,9.96059986,138.33,138.3,11.67129173]
[1726293498249,9.96059986,138.33,138.29,6.61745338]
[1726293498456,9.96059986,138.33,138.3,11.67129173]
[1726293504381,9.96059986,138.33,138.29,20.0]
[1726293504559,9.96059986,138.33,138.3,11.67129173]
[1726293505069,9.96059986,138.33,138.3,11.17129173]
[1726293505970,9.96059986,138.33,138.3,11.67129173]
[1726293507965,9.96059986,138.33,138.28,31.67129173]
[1726293511978,9.96059986,138.33,138.28,11.67129173]
[1726293512179,9.96059986,138.33,138.32,11.67129173]
[1726293512574,9.78248446,138.33,138.32,11.67129173]
[1726293516792,9.78248446,138.33,138.31,20.0]
[1726293516986,9.78248446,138.33,138.32,11.67129173]
[1726293519596,9.78248446,138.33,138.32,62.31660911]
[1726293519770,9.78248446,138.33,138.28,15.046]
[1726293519971,9.78248446,138.33,138.3,11.67129173]
[1726293520274,9.78248446,138.33,138.32,11.67129173]
[1726293520872,9.78248446,138.33,138.31,11.77746293]
[1726293521077,7.27528446,138.33,138.31,11.77746293]
[1726293521280,7.27528446,138.33,138.31,0.1061712]
[1726293521281,4.76808446,138.33,138.31,0.1061712]
[1726293562442,23.902374,138.31,138.27,0.2577275]